bitfinex/quotes_ETHUSD_20220118
["timestamp","ask_amount","ask_price","bid_price","bid_amount"]
[1642468390794,1.85080728,3244.0,3243.9,30.60315598]
[1642468390989,0.548896,3244.0,3243.9,31.60315598]
[1642468391390,0.548896,3244.0,3243.9,31.59835598]
[1642468391590,0.548896,3244.0,3243.9,31.60395598]
[1642468391791,0.548896,3244.0,3243.9,31.61593723]
[1642468392191,0.548896,3244.0,3243.9,35.56537764]
[1642468392396,0.250096,3244.0,3243.9,35.68067764]
[1642468392592,0.250096,3244.0,3243.9,34.67187764]
[1642468392792,0.250096,3244.0,3243.9,34.54617764]
[1642468392993,0.250096,3244.0,3243.9,34.55606047]
[1642468393195,0.250096,3244.0,3243.9,30.74406408]
[1642468393392,0.250096,3244.0,3243.9,0.73606408]
[1642468393638,0.250096,3244.0,3243.9,0.73446408]
[1642468393838,0.250096,3244.0,3243.9,0.73846408]
[1642468394139,0.250096,3244.0,3243.9,1.33446408]
[1642468394337,1.55176215,3244.1,3244.0,29.749904]
[1642468394539,1.55176215,3244.1,3244.0,31.196904]
[1642468394739,1.55403584,3244.1,3244.0,31.327304]
[1642468394942,1.55403584,3244.1,3244.0,31.449804]
[1642468395139,1.55403584,3244.1,3244.0,31.445804]
[1642468395339,1.55403584,3244.1,3244.0,30.322504]
[1642468395541,1.55403584,3244.1,3244.0,31.326504]
[1642468395744,1.55403584,3244.1,3244.0,31.325704]
[1642468395950,1.55403584,3244.1,3242.5,5.71034852]
[1642468395951,4.85,3244.0,3242.5,5.71034852]
[1642468396147,2.0,3243.9,3243.6,1.47829351]
[1642468396346,6.35,3243.8,3243.4,0.91900911]
[1642468396545,1.67987114,3243.7,3243.4,0.91900911]
[1642468396745,1.68100799,3243.7,3243.4,0.91900911]
[1642468396945,0.1231,3243.6,3243.4,0.91900911]
[1642468397280,0.00113685,3243.7,3243.2,1.49985858]
[1642468397482,0.00113685,3243.7,3243.2,1.49665858]
[1642468397679,2.11573685,3244.1,3243.3,0.24443684]
[1642468397878,1.11741452,3243.8,3243.3,0.00227369]
[1642468398079,1.11741452,3243.8,3243.4,0.00170527]
[1642468398381,0.00170527,3244.0,3243.2,0.12124212]
[1642468398580,1.40939618,3243.3,3243.2,0.00284212]
[1642468398780,1.40939618,3243.3,3243.1,0.2465]
[1642468398979,1.40939618,3243.3,3243.2,0.1184]
[1642468399181,1.40939618,3243.3,3243.2,0.1168]
[1642468399382,1.40939618,3243.3,3243.1,0.1233]
[1642468401237,1.40939618,3243.3,3243.0,0.68386123]
[1642468401637,1.40939618,3243.3,3243.1,0.68727177]
[1642468402038,0.00764899,3243.7,3243.3,0.68386123]
[1642468402239,0.00764899,3243.7,3243.4,0.04047963]
[1642468402441,0.00764899,3243.7,3243.4,0.00170527]
[1642468402642,0.00764899,3243.7,3243.5,0.00113685]
[1642468402643,0.00564899,3243.7,3243.5,0.00113685]
[1642468402838,1.82372269,3244.1,3243.4,0.00170527]
[1642468403037,1.82372269,3244.1,3243.4,0.00284212]
[1642468403038,1.52471964,3243.5,3243.4,0.00284212]
[1642468404439,1.52471964,3243.5,3243.4,0.01561896]
[1642468406793,1.52471964,3243.5,3243.1,0.1233]
[1642468406794,1.94801964,3243.5,3243.1,0.1233]
[1642468406996,1.94801964,3243.5,3242.5,1.4827542]
[1642468406997,6.36205888,3243.2,3242.5,1.4827542]
[1642468407191,1.77539387,3243.1,3242.5,1.4827542]
[1642468407391,1.26506004,3243.0,3242.5,1.4827542]
[1642468407591,0.1229,3242.9,3242.5,1.4827542]
[1642468407990,1.08966004,3243.0,3242.5,1.4827542]
[1642468408391,1.38966004,3243.0,3241.8,2.82565911]
[1642468408633,1.0,3242.8,3241.8,1.4827542]
[1642468408837,1.0,3242.8,3241.9,0.00852635]
[1642468409033,1.08966004,3243.0,3241.9,0.13182635]
[1642468409436,0.0069191,3242.9,3242.0,0.00795793]
[1642468409636,1.53491727,3242.9,3242.3,1.16335767]
[1642468409836,1.53491727,3242.9,3242.3,1.46335767]
[1642468410135,1.53491727,3242.9,3242.4,0.00568423]
[1642468410338,1.53491727,3242.9,3242.4,0.12898423]
[1642468410737,1.53491727,3242.9,3242.5,0.00511581]
[1642468411142,1.53491727,3242.9,3242.4,0.00568423]
[1642468411540,1.55273001,3242.5,3242.4,0.00568423]
[1642468411741,1.55273001,3242.5,3242.2,0.13012108]
[1642468411940,1.55273001,3242.5,3242.3,0.00625266]
[1642468412142,1.4172554,3242.4,3242.3,0.00625266]
[1642468412681,1.4172554,3242.4,3242.1,0.00738951]
[1642468413081,1.1231554,3242.4,3242.1,0.00738951]
[1642468413281,1.55273001,3242.5,3242.1,0.00738951]
[1642468413682,1.55273001,3242.5,3241.9,0.1233]
[1642468414082,1.55273001,3242.5,3242.0,0.00795793]
[1642468414281,1.24860516,3242.4,3242.0,0.00795793]
[1642468414481,1.25552921,3242.4,3242.0,0.00795793]
[1642468415484,1.25552921,3242.4,3241.7,1.6060542]
[1642468415485,1.25552921,3242.4,3241.8,0.00909478]
[1642468415681,1.25552921,3242.4,3241.9,0.07343693]
[1642468415881,1.25552921,3242.4,3241.8,0.00909478]
[1642468415882,0.00692405,3242.4,3241.8,0.00909478]
[1642468416135,1.31014512,3242.3,3242.1,2.64096363]
[1642468416534,1.31014512,3242.3,3242.2,0.00682108]
[1642468418045,1.31014512,3242.3,3242.2,2.64778471]
[1642468418237,1.46454512,3242.3,3242.2,2.64778471]
[1642468418640,25.23454512,3242.3,3242.2,2.49778471]
[1642468419037,1.76454512,3242.3,3242.2,2.49778471]
[1642468419438,1.76454512,3242.3,3241.2,1.4827542]
[1642468419638,0.747,3242.3,3241.2,1.4827542]
[1642468419887,0.747,3242.3,3241.3,0.00511581]
[1642468420185,0.747,3242.3,3240.9,3.03254179]
[1642468420186,0.747,3242.3,3241.0,0.13012108]
[1642468420592,1.2191271,3241.4,3241.1,0.00625266]
[1642468420787,0.447,3241.8,3241.2,0.1234]
[1642468420990,1.57802675,3241.8,3241.2,0.1234]
[1642468421189,0.447,3241.8,3241.2,0.1234]
[1642468421790,1.35170898,3241.4,3241.2,0.1234]
[1642468422792,1.35170898,3241.4,3241.2,3.09167882]
[1642468423098,1.50053343,3241.3,3241.2,3.09167882]
[1642468423291,1.20673343,3241.3,3241.2,3.09167882]
[1642468423538,1.447,3241.8,3241.2,3.09736306]
[1642468423732,0.447,3241.8,3241.3,1.55508501]
[1642468423931,0.447,3241.8,3241.3,1.49779005]
[1642468424132,0.447,3241.8,3241.4,0.00454739]
[1642468424334,0.75115753,3241.8,3241.4,0.00454739]
[1642468425034,0.75115753,3241.8,3240.7,0.00852635]
[1642468425234,2.61429874,3241.7,3240.7,0.00852635]
[1642468425433,0.447,3241.6,3240.7,0.00852635]
[1642468425638,2.67856328,3241.6,3240.7,0.00852635]
[1642468425836,11.18396328,3241.6,3240.7,0.00852635]
[1642468426034,1.0,3241.3,3240.5,0.0096632]
[1642468426239,0.447,3241.2,3240.5,0.0096632]
[1642468426437,1.47444566,3240.9,3240.5,0.0096632]
[1642468426638,0.447,3241.0,3240.5,0.1330632]
[1642468426835,5.5645,3241.4,3240.5,0.1330632]
[1642468427038,5.5645,3241.4,3240.6,0.00909478]
[1642468427281,5.5645,3241.4,3240.7,0.05815418]
[1642468427483,1.24230905,3241.2,3240.9,1.30069433]
[1642468427684,1.24230905,3241.2,3240.8,0.13135793]
[1642468427882,1.24230905,3241.2,3241.0,0.00682108]
[1642468428083,1.24230905,3241.2,3240.9,0.00738951]
[1642468428287,0.94860905,3241.2,3240.9,0.00738951]
[1642468428484,0.94860905,3241.2,3240.7,0.00852635]
[1642468428685,0.94860905,3241.2,3240.8,0.1234]
[1642468428884,0.94860905,3241.2,3240.7,0.00852635]
[1642468429082,0.94860905,3241.2,3240.9,0.00738951]
[1642468429283,0.94860905,3241.2,3240.6,0.13249478]
[1642468429486,0.95273714,3241.2,3240.9,0.00738951]
[1642468429685,0.00412809,3241.2,3241.0,1.24622093]
[1642468430087,5.1175,3241.4,3241.1,2.00625266]
[1642468430088,1.1265,3241.4,3241.1,2.00625266]
[1642468430286,8.5054,3241.6,3241.3,0.01237531]
[1642468430688,8.5054,3241.6,3241.4,1.55336102]
[1642468430894,8.5054,3241.6,3241.5,1.37233151]
[1642468431135,8.5054,3241.6,3241.5,1.37631048]
[1642468431339,10.5669,3242.7,3241.5,4.37631048]
[1642468431537,19.3641,3242.7,3241.6,0.1233]
[1642468431737,0.00113685,3242.4,3241.6,2.12671054]
[1642468431936,0.00113685,3242.4,3241.7,0.00284212]
[1642468432138,0.00113685,3242.4,3241.8,0.1233]
[1642468432337,0.00113685,3242.4,3242.1,1.25005826]
[1642468432639,5.581,3244.8,3242.1,1.25005826]
[1642468432640,0.447,3244.7,3242.2,9.53220218]
[1642468432838,0.01275718,3245.8,3242.2,9.53220218]
[1642468432839,2.3961,3244.6,3242.3,0.01298379]
[1642468433039,2.3961,3244.6,3242.4,0.5703]
[1642468433040,0.00113684,3242.6,3242.4,0.5703]
[1642468433442,0.447,3244.3,3242.5,0.1224]
[1642468433639,0.447,3244.3,3242.3,4.0]
[1642468433838,1.1936,3244.2,3242.4,0.1233]
[1642468434038,1.0,3243.8,3242.4,0.00113685]
[1642468434238,1.0,3243.8,3242.5,0.1233]
[1642468434538,1.21726088,3242.6,3242.5,0.1233]
[1642468434788,1.21726088,3242.6,3242.4,0.12443685]
[1642468435187,1.21726088,3242.6,3242.4,0.00113685]
[1642468435388,10.00166088,3242.6,3242.4,0.00113685]
[1642468435589,10.00166088,3242.6,3242.0,0.1233]
[1642468435788,1.37854215,3242.2,3242.0,0.12671054]
[1642468435993,1.34086377,3242.1,3242.0,0.1233]
[1642468436393,1.34086377,3242.1,3242.0,0.12671054]
[1642468436590,8.7844,3242.6,3242.0,0.12671054]
[1642468436790,8.7844,3242.6,3242.1,0.06515948]
[1642468436991,8.7844,3242.6,3242.2,0.1233]
[1642468437190,8.7844,3242.6,3242.2,0.12557369]
[1642468437391,8.7844,3242.6,3242.3,0.00170527]
[1642468437791,8.7844,3242.6,3242.2,0.00227369]
[1642468437990,8.7844,3242.6,3242.3,0.1233]
[1642468438190,2.70716001,3242.5,3242.3,0.1233]
[1642468438637,2.40906001,3242.5,3242.3,0.1233]
[1642468438832,2.40906001,3242.5,3242.4,0.00113684]
[1642468439236,2.40906001,3242.5,3242.4,2.64183078]
[1642468439436,2.40906001,3242.5,3242.4,2.64069394]
[1642468439634,2.40906001,3242.5,3242.4,2.64183078]
[1642468440235,2.40906001,3242.5,3242.4,0.00113684]
[1642468440639,2.40906001,3242.5,3242.3,0.00170527]
[1642468441248,2.40906001,3242.5,3242.2,0.00227369]
[1642468441443,2.40906001,3242.5,3242.4,2.64069394]
[1642468441841,2.40906001,3242.5,3242.4,2.64183078]
[1642468442283,2.85606001,3242.5,3241.7,1.49779005]
[1642468442686,2.85606001,3242.5,3241.8,0.00341055]
[1642468443387,3.15606001,3242.5,3241.6,0.00454739]
[1642468443791,2.85536001,3242.5,3241.4,0.00568424]
[1642468444491,0.00370859,3242.4,3241.4,0.00568424]
[1642468444689,0.00370859,3242.4,3241.5,0.08120787]
[1642468444690,0.45070859,3242.4,3241.5,0.08120787]
[1642468445088,0.75070859,3242.4,3241.6,0.00454739]
[1642468445488,0.75070859,3242.4,3241.4,0.00568424]
[1642468445687,1.37854845,3241.6,3241.4,0.00568424]
[1642468445888,1.37854845,3241.6,3241.3,0.00625266]
[1642468446447,1.54700094,3241.5,3241.3,0.00625266]
[1642468446637,1.54700094,3241.5,3241.2,1.45404271]
[1642468447243,1.54700094,3241.5,3241.1,0.13819997]
[1642468447539,1.54700094,3241.5,3241.2,0.0338743]
[1642468447739,1.54700094,3241.5,3241.2,0.1234]
[1642468448942,1.24880094,3241.5,3241.2,0.1234]
[1642468449338,1.24880094,3241.5,3241.4,0.00520197]
[1642468449788,1.24993778,3241.5,3241.4,0.12860197]
[1642468450996,1.24993778,3241.5,3241.1,2.24668507]
[1642468451791,1.51006889,3241.4,3241.1,2.24668507]
[1642468452293,1.51006889,3241.4,3241.0,0.1534]
[1642468452491,1.51006889,3241.4,3241.0,0.03]
[1642468452691,1.51006889,3241.4,3241.1,0.00113685]
[1642468454036,1.21906889,3241.4,3241.1,0.00113685]
[1642468454437,0.00663762,3241.3,3241.1,0.00113685]
[1642468455037,0.00663762,3241.3,3241.1,0.04086589]
[1642468455236,0.00663762,3241.3,3241.1,0.00113685]
[1642468459192,1.21906889,3241.4,3240.6,1.49019467]
[1642468459193,2.98760715,3241.4,3240.6,1.49019467]
[1642468459398,2.98760715,3241.4,3241.2,0.00912196]
[1642468459399,3.06126066,3241.4,3241.2,0.00912196]
[1642468459594,0.00113684,3241.3,3241.2,0.00912196]
[1642468460595,2.05477474,3241.3,3241.2,0.00912196]
[1642468460794,0.00113684,3241.3,3241.2,0.00912196]
[1642468461044,8.39003684,3241.3,3241.2,0.00912196]
[1642468462440,1.15026828,3240.5,3240.3,1.45159032]
[1642468462838,1.15026828,3240.5,3240.4,0.00170527]
[1642468463237,2.6123106,3240.5,3240.4,0.00170527]
[1642468464039,2.6123106,3240.5,3240.2,0.00284212]
[1642468464241,2.3163106,3240.5,3240.3,0.1234]
[1642468465995,2.3163106,3240.5,3240.2,0.00284212]
[1642468466391,0.1234,3240.4,3240.1,0.00341054]
[1642468466796,0.1234,3240.4,3240.0,0.00397897]
[1642468466797,1.0,3240.3,3240.0,0.00397897]
[1642468467393,1.0,3240.3,3239.8,0.00511581]
[1642468467795,0.1234,3240.4,3239.8,0.00511581]
[1642468467993,2.75495809,3239.9,3239.8,0.00511581]
[1642468468195,2.75495809,3239.9,3239.8,0.12851581]
[1642468468196,1.40542421,3239.9,3239.8,0.12851581]
[1642468468395,1.40542421,3239.9,3239.8,0.42851581]
[1642468468634,1.40542421,3239.9,3239.8,0.54451581]
[1642468468836,1.40542421,3239.9,3239.8,1.42851581]
[1642468469033,1.40542421,3239.9,3239.8,0.42851581]
[1642468469433,1.10482421,3239.9,3239.8,0.42851581]
[1642468470239,8.8175,3240.7,3239.8,0.12851581]
[1642468470443,1.19908857,3240.0,3239.8,0.12851581]
[1642468470638,1.19908857,3240.0,3239.9,0.00454739]
[1642468472692,1.19908857,3240.0,3239.8,0.00511581]
[1642468473093,1.19908857,3240.0,3239.9,2.25013094]
[1642468473492,1.19908857,3240.0,3239.9,2.67807833]
[1642468473892,1.19908857,3240.0,3239.9,3.67807833]
[1642468474293,1.19908857,3240.0,3239.9,3.79487833]
[1642468474496,1.1555,3240.7,3239.9,3.79807833]
[1642468474697,3.86184211,3241.2,3240.0,2.7064096]
[1642468474698,0.12624211,3241.2,3240.0,2.7064096]
[1642468474998,0.00227369,3241.1,3240.1,0.88481054]
[1642468475194,0.00227369,3241.1,3240.1,1.18561054]
[1642468475395,0.00170527,3241.0,3240.7,0.01216643]
[1642468475795,1.36051853,3240.9,3240.7,0.01216643]
[1642468476053,1.36051853,3240.9,3240.8,1.49654072]
[1642468476237,1.35938169,3240.9,3240.8,1.79654072]
[1642468476437,1.36051853,3240.9,3240.8,1.91974072]
[1642468476636,1.36051853,3240.9,3240.8,1.91734072]
[1642468476837,1.31051853,3240.9,3240.8,1.79654072]
[1642468477037,1.31051853,3240.9,3240.8,1.91334072]
[1642468477240,1.31051853,3240.9,3240.8,0.416]
[1642468477542,1.31051853,3240.9,3240.8,1.89427662]
[1642468477739,1.31051853,3240.9,3240.7,2.6761775]
[1642468477939,1.31051853,3240.9,3240.8,1.0]
[1642468478338,1.31051853,3240.9,3240.8,5.13802785]
[1642468479043,1.31051853,3240.9,3240.8,3.64136978]
[1642468479642,1.01331853,3240.9,3240.8,3.64136978]
[1642468480489,1.01331853,3240.9,3240.8,2.64136978]
[1642468480891,1.01331853,3240.9,3240.8,2.94136978]
[1642468481294,1.01331853,3240.9,3240.8,2.64136978]
[1642468481498,1.01331853,3240.9,3240.8,0.3]
[1642468481895,1.01331853,3240.9,3240.7,1.79952038]
[1642468482197,1.01331853,3240.9,3240.7,1.44952038]
[1642468482598,1.01331853,3240.9,3240.8,2.59136978]
[1642468483543,1.01331853,3240.9,3240.6,0.3]
[1642468483743,1.01331853,3240.9,3240.2,2.24765319]
[1642468484037,9.6053,3240.8,3240.3,0.0022737]
[1642468484836,9.3045,3240.8,3240.1,0.00341054]
[1642468485438,9.3045,3240.8,3240.1,2.24822161]
[1642468485838,9.3045,3240.8,3240.2,0.00284212]
[1642468486040,0.447,3240.7,3240.2,0.00284212]
[1642468486642,0.447,3240.7,3240.0,0.00397897]
[1642468487983,0.1234,3240.6,3240.0,0.00397897]
[1642468488589,0.1234,3240.6,3240.1,0.08120787]
[1642468488788,0.1234,3240.6,3240.0,0.00397897]
[1642468488988,0.1234,3240.6,3240.2,0.00284212]
[1642468489188,0.1234,3240.6,3239.9,2.24481107]
[1642468489189,0.1234,3240.6,3240.0,0.00397897]
[1642468489589,0.1234,3240.6,3239.8,0.00511581]
[1642468489789,0.1234,3240.6,3239.9,0.06042506]
[1642468489990,0.447,3240.7,3239.9,0.06042506]
[1642468489991,0.2709,3240.7,3239.9,0.06042506]
[1642468490188,0.2709,3240.7,3240.0,0.00397897]
[1642468490589,2.34895469,3240.7,3239.8,0.00511581]
[1642468490790,0.00964381,3240.6,3239.8,0.00511581]
[1642468491066,2.34895469,3240.7,3239.8,0.00511581]
[1642468491657,3.58115469,3240.7,3239.8,0.00511581]
[1642468491858,3.58115469,3240.7,3239.6,1.51461695]
[1642468492057,3.58115469,3240.7,3239.7,0.00568424]
[1642468492458,3.58115469,3240.7,3239.8,0.08120787]
[1642468492459,1.5031,3240.7,3239.8,0.08120787]
[1642468492860,1.5031,3240.7,3239.9,0.00454739]
[1642468493260,1.5031,3240.7,3239.8,0.30511581]
[1642468493461,1.5031,3240.7,3239.9,0.12794739]
[1642468493662,3.5701816,3240.7,3239.9,0.12794739]
[1642468493860,1.8031,3240.7,3240.0,0.00397897]
[1642468494461,0.00432305,3240.6,3239.9,0.00454739]
[1642468494662,1.8031,3240.7,3239.5,0.00682109]
[1642468494883,3.92102618,3240.7,3239.6,0.1234]
[1642468495082,3.92102618,3240.7,3239.4,0.1234]
[1642468495083,3.62102618,3240.7,3239.4,0.1234]
[1642468495283,3.62102618,3240.7,3239.7,0.00568424]
[1642468495482,3.62102618,3240.7,3239.5,0.00682109]
[1642468495687,1.5031,3240.7,3239.5,0.00682109]
[1642468495884,3.59680629,3240.7,3239.5,0.00682109]
[1642468496291,3.89680629,3240.7,3239.5,0.00682109]
[1642468496692,3.89680629,3240.7,3239.6,1.63176429]
[1642468496889,1.8031,3240.7,3239.7,0.08120787]
[1642468497088,1.8031,3240.7,3239.7,0.08689211]
[1642468497289,1.8031,3240.7,3239.8,0.00511581]
[1642468497691,1.8031,3240.7,3239.7,0.00568424]
[1642468497989,3.89449026,3240.7,3239.6,0.00625266]
[1642468498193,1.8031,3240.7,3239.7,0.03509869]
[1642468498668,3.90961096,3240.7,3239.8,0.00511581]
[1642468499069,3.90961096,3240.7,3239.6,0.00625266]
[1642468499469,3.90961096,3240.7,3239.7,0.05414386]
[1642468499669,1.8031,3240.7,3239.7,0.05414386]
[1642468499870,1.8031,3240.7,3239.8,0.00511581]
[1642468500072,3.62540088,3240.7,3239.8,0.00511581]
[1642468500274,3.59166541,3240.7,3239.6,0.00625266]
[1642468501375,3.89166541,3240.7,3239.6,0.00625266]
[1642468503399,3.89166541,3240.7,3239.8,0.05173672]
[1642468503798,1.8031,3240.7,3240.0,0.07005642]
[1642468504197,1.8031,3240.7,3240.1,0.00341054]
[1642468504597,1.8031,3240.7,3240.0,0.00397897]
[1642468505297,1.8031,3240.7,3240.1,0.07031155]
[1642468505298,1.5008,3240.7,3240.1,0.07031155]
[1642468505697,1.5008,3240.7,3240.2,0.00284212]
[1642468505900,1.5008,3240.7,3240.3,0.04597238]
[1642468506139,0.01637439,3240.6,3240.2,0.00284212]
[1642468506340,1.5008,3240.7,3240.2,0.00284212]
[1642468506541,1.5008,3240.7,3240.1,2.64240767]
[1642468506741,1.5008,3240.7,3240.2,0.02261423]
[1642468506940,1.5008,3240.7,3240.3,0.06853724]
[1642468507142,1.5008,3240.7,3240.3,0.0022737]
[1642468507341,1.8008,3240.7,3240.3,0.0022737]
[1642468507641,1.8008,3240.7,3240.3,0.03919042]
[1642468507841,1.8008,3240.7,3240.3,0.0022737]
[1642468508843,0.00443106,3240.6,3240.3,2.64466161]
[1642468509042,0.447,3240.6,3240.3,2.64466161]
[1642468509244,0.747,3240.6,3240.3,2.64466161]
[1642468509444,0.747,3240.6,3240.4,0.50031144]
[1642468509645,0.747,3240.6,3240.4,0.50853235]
[1642468509886,0.747,3240.6,3240.5,0.00113685]
[1642468510487,0.447,3240.6,3240.5,0.00113685]
[1642468510688,0.447,3240.6,3240.2,0.01977211]
[1642468510991,0.447,3240.6,3240.3,0.00113685]
[1642468511793,0.447,3240.6,3240.3,2.64356067]
[1642468512192,0.447,3240.6,3240.3,1.77628249]
[1642468512193,0.747,3240.6,3240.3,1.77628249]
[1642468512394,0.00113685,3240.5,3240.3,1.77628249]
[1642468512592,0.00113685,3240.5,3239.4,0.1234]
[1642468512992,0.00113685,3240.5,3239.5,0.00454739]
[1642468513193,0.00113685,3240.5,3239.6,0.1234]
[1642468513641,0.00113685,3240.5,3239.7,0.00341054]
[1642468514042,1.43098127,3240.4,3239.8,0.1234]
[1642468514540,1.73098127,3240.4,3239.9,0.00227369]
[1642468514938,1.68098127,3240.4,3239.9,0.00227369]
[1642468515639,1.38878127,3240.4,3239.9,0.00227369]
[1642468515942,1.38878127,3240.4,3238.9,0.116]
[1642468515943,4.4,3240.2,3238.9,0.116]
[1642468516147,2.5704,3240.1,3239.5,0.0022737]
[1642468516343,0.447,3240.0,3239.5,0.0022737]
[1642468516542,0.1234,3239.9,3239.5,0.0022737]
[1642468516742,0.447,3239.8,3239.5,0.0022737]
[1642468516942,2.60758413,3239.6,3239.5,0.0022737]
[1642468517143,3.35458413,3239.6,3239.5,0.0022737]
[1642468517894,12.34505186,3239.6,3239.5,0.0022737]
[1642468518090,12.34505186,3239.6,3238.4,0.13192635]
[1642468518091,13.34505186,3239.6,3238.4,0.13192635]
[1642468518292,13.34505186,3239.6,3238.5,0.00795793]
[1642468518491,12.34505186,3239.6,3238.6,0.1234]
[1642468518696,10.7401,3239.6,3238.6,0.1234]
[1642468518894,10.7401,3239.6,3239.2,1.44712003]
[1642468518895,9.054,3239.6,3239.2,1.44712003]
[1642468519093,9.054,3239.6,3239.4,0.04320524]
[1642468519293,9.054,3239.6,3239.5,0.1234]
[1642468519494,9.054,3239.6,3239.4,0.1234]
[1642468519693,0.00998491,3239.5,3239.4,0.1234]
[1642468520096,0.00998491,3239.5,3239.4,0.12624212]
[1642468520694,1.24533028,3239.5,3239.4,0.12624212]
[1642468523545,8.64660527,3240.2,3239.4,0.12624212]
[1642468523747,8.64660527,3240.2,3239.5,0.04225903]
[1642468523946,0.00113685,3240.1,3239.5,0.1234]
[1642468524150,0.00113685,3240.1,3239.6,0.00170527]
[1642468524893,0.00113685,3240.1,3239.4,1.36967992]
[1642468525093,0.00113685,3240.1,3239.5,0.1234]
[1642468525296,0.00113685,3240.1,3239.4,1.66967992]
[1642468525492,1.53991096,3240.0,3239.7,0.03239143]
[1642468525693,1.24901096,3240.0,3239.6,0.00170527]
[1642468530546,1.24901096,3240.0,3239.4,0.00284212]
[1642468530745,0.95721096,3240.0,3239.4,0.00284212]
[1642468532389,0.95721096,3240.0,3239.5,0.05962457]
[1642468532788,0.95721096,3240.0,3239.6,0.00170527]
[1642468533191,0.95721096,3240.0,3239.6,2.64443292]
[1642468533590,0.95721096,3240.0,3239.7,0.00113685]
[1642468533591,0.1234,3239.9,3239.7,0.00113685]
[1642468535493,1.08061096,3240.0,3239.7,0.00113685]
[1642468535895,0.00113685,3240.1,3239.7,0.01387839]
[1642468536150,0.00113685,3240.1,3239.7,0.97074154]
[1642468537049,1.24387816,3240.0,3239.7,0.97074154]
[1642468537650,1.24387816,3240.0,3239.8,2.64272765]
[1642468539452,1.24387816,3240.0,3239.4,2.64272765]
[1642468539652,1.24387816,3240.0,3239.5,1.1234]
[1642468539899,1.24387816,3240.0,3239.9,2.64272765]
[1642468540100,2.4,3239.7,3239.1,1.51120115]
[1642468540294,0.447,3239.6,3239.1,1.51120115]
[1642468540493,0.1234,3239.5,3239.1,0.0022737]
[1642468540893,0.49783685,3239.6,3239.1,0.0022737]
[1642468541096,2.28358943,3239.5,3239.2,0.00113685]
[1642468541294,0.447,3239.4,3239.2,0.00113685]
[1642468541997,1.447,3239.4,3239.2,0.00113685]
[1642468542197,1.447,3239.4,3239.0,0.00227369]
[1642468542399,0.1234,3239.3,3239.0,0.00227369]
[1642468542599,0.447,3239.2,3238.4,0.00568423]
[1642468542797,0.1235,3239.1,3238.4,0.00568423]
[1642468542996,9.8495,3239.1,3238.4,0.00568423]
[1642468543396,1.07224988,3238.9,3238.4,0.00568423]
[1642468543646,2.24463127,3238.8,3238.4,0.00568423]
[1642468543848,0.447,3238.7,3238.4,0.00568423]
[1642468544147,0.1235,3238.6,3238.2,0.00682108]
[1642468544347,0.1235,3238.6,3238.5,0.52878394]
[1642468544747,6.3,3238.5,3237.8,2.24481107]
[1642468545053,0.8705,3238.4,3237.9,0.00341054]
[1642468545247,0.447,3238.3,3237.9,0.00341054]
[1642468545446,0.1235,3238.2,3237.9,0.00341054]
[1642468545647,0.447,3238.1,3237.9,0.00341054]
[1642468545847,0.447,3238.1,3237.4,0.89284318]
[1642468545848,5.0,3237.9,3237.4,0.89284318]
[1642468546050,6.3,3237.6,3236.8,3.71034852]
[1642468546254,8.8705,3237.5,3235.9,6.18327014]
[1642468546455,8.8705,3237.5,3236.9,0.00568424]
[1642468546456,17.2646,3237.5,3236.9,0.00568424]
[1642468546652,1.0,3237.4,3236.9,0.00568424]
[1642468546954,0.5705,3237.3,3236.9,0.00568424]
[1642468547156,1.6965,3237.3,3236.9,0.00568424]
[1642468547395,1.6965,3237.3,3236.4,0.00852635]
[1642468547602,2.6965,3237.3,3236.4,0.00852635]
[1642468547797,1.6965,3237.3,3236.4,0.00852635]
[1642468548196,1.34527884,3237.1,3236.4,0.00852635]
[1642468548395,1.34527884,3237.1,3236.5,0.1235]
[1642468548795,1.34527884,3237.1,3236.6,0.00738951]
[1642468548998,1.34527884,3237.1,3236.7,0.1235]
[1642468549195,1.6965,3237.3,3236.8,0.04465675]
[1642468549398,1.6965,3237.3,3236.8,0.00625266]
[1642468549596,1.70099683,3237.3,3236.9,0.04380557]
[1642468549796,1.70099683,3237.3,3236.8,0.00625266]
[1642468549998,1.70099683,3237.3,3237.0,0.00511581]
[1642468550202,0.00449683,3237.3,3237.1,1.59196775]
[1642468550399,0.00449683,3237.3,3237.1,1.51578241]
[1642468550598,8.9813,3237.5,3237.2,0.00397896]
[1642468550599,8.98579683,3237.5,3237.2,0.00397896]
[1642468550802,8.98579683,3237.5,3237.3,0.1235]
[1642468551247,8.68709683,3237.5,3237.4,0.00284212]
[1642468551946,8.68709683,3237.5,3237.4,0.01328727]
[1642468552347,8.68709683,3237.5,3237.4,0.01612939]
[1642468554647,8.68709683,3237.5,3237.4,0.02184126]
[1642468554892,1.227,3237.7,3237.4,0.02184126]
[1642468555091,1.227,3237.7,3237.5,0.03659947]
[1642468555297,1.227,3237.7,3237.5,0.00227369]
[1642468555490,1.227,3237.7,3237.6,0.00170527]
[1642468555791,1.227,3237.7,3237.5,0.00227369]
[1642468556295,1.227,3237.7,3237.6,1.29169098]
[1642468556497,0.1235,3238.1,3237.7,0.0702406]
[1642468556696,14.0185,3238.2,3237.6,1.29169098]
[1642468556697,10.2271,3238.2,3237.6,3.29673332]
[1642468556896,0.00113685,3238.1,3237.7,0.0372535]
[1642468557094,0.00113685,3238.1,3237.7,2.96347073]
[1642468557295,0.00113685,3238.1,3237.7,1.91095201]
[1642468557495,0.00113685,3238.1,3237.7,0.00113685]
[1642468559544,0.00113685,3238.1,3237.9,0.00757685]
[1642468560746,0.00113685,3238.1,3237.9,0.04216266]
[1642468560947,0.00113685,3238.1,3237.9,0.00757685]
[1642468561553,1.04282037,3238.1,3238.0,2.64389146]
[1642468562394,1.04282037,3238.1,3237.9,0.02067327]
[1642468562594,1.11087641,3238.0,3237.9,0.02067327]
[1642468562995,4.03437641,3238.0,3237.0,8.94563138]
[1642468563204,1.23437641,3238.0,3237.0,1.52563138]
[1642468563402,1.23437641,3238.0,3237.3,0.00341054]
[1642468563599,2.83437641,3238.0,3237.9,2.64428465]
[1642468563998,5.18437641,3238.0,3237.9,2.64428465]
[1642468564399,5.18437641,3238.0,3237.3,0.00341054]
[1642468564400,6.3065223,3237.9,3237.3,0.00341054]
[1642468564598,1.5705,3237.8,3237.3,0.00341054]
[1642468564798,1.5705,3237.8,3237.2,0.00397896]
[1642468564799,1.8705,3237.8,3237.2,0.00397896]
[1642468565199,1.8705,3237.8,3237.3,0.04402322]
[1642468565598,1.10404212,3237.4,3236.9,1.52563138]
[1642468566043,1.10404212,3237.4,3237.0,0.00511581]
[1642468566747,0.81084212,3237.4,3237.0,0.00511581]